Workbook

Sheet Allocation WS (NEW)
A1: Consumer Directed Attendant Support Services | K1: Months Left (Ending) | L1: Months Left (Starting)
A2: Monthly Allocation Worksheet Using Services | J2: 2011-01-01 | K2: 0.03225806452 | L2: 1
A3: UPDATE: This worksheet uses the current Medicaid Rates effective July 1, 2018. | J3: 2011-01-02 | K3: 0.06451612903 | L3: 0.9677419355
J4: 2011-01-03 | K4: 0.09677419355 | L4: 0.935483871
A5: Medicaid ID | B5: Certification Start Date | D5: Certification End Date | J5: 2011-01-04 | K5: 0.1290322581 | L5: 0.9032258065
A6: Sample Client ID | J6: 2011-01-05 | K6: 0.1612903226 | L6: 0.8709677419
J7: 2011-01-06 | K7: 0.1935483871 | L7: 0.8387096774
A8: This is a: | D8: This client is on HCBS (PLEASE ENTER WAIVER): | J8: 2011-01-07 | K8: 0.2258064516 | L8: 0.8064516129
J9: 2011-01-08 | K9: 0.2580645161 | L9: 0.7741935484
J10: 2011-01-09 | K10: 0.2903225806 | L10: 0.7419354839
A11: CDASS Start Date | B11: CDASS End Date | D11: Days in CDASS Period | F11: Months in CDASS Period | J11: 2011-01-10 | K11: 0.3225806452 | L11: 0.7096774194
A12: 2018-07-01 | B12: 2019-01-01 | D12: =IFERROR(IF(YEARFRAC(A12-1,B12)>1,"Invalid Date Span > 1YR",B12-A12+1),"") -> 185 | F12: =C34 -> 6.032258065 | J12: 2011-01-11 | K12: 0.3548387097 | L12: 0.6774193548
J13: 2011-01-12 | K13: 0.3870967742 | L13: 0.6451612903
A14: SERVICE | B14: 15 Minute Rate | C14: Hourly Rate | D14: Overhead Adjustment | E14: Adjusted Hourly Rate | F14: Adjusted 15 Minute Rate | J14: 2011-01-13 | K14: 0.4193548387 | L14: 0.6129032258
A15: Homemaker | B15: 3.9 | C15: =B15*4 -> 15.6 | D15: =-(C15*10.75%) -> -1.677 | E15: =ROUND((C15+D15),2) -> 13.92 | F15: =ROUND((E15/4),2) -> 3.48 | J15: 2011-01-14 | K15: 0.4516129032 | L15: 0.5806451613
A16: Homemaker Enhanced | B16: 6.32 | C16: =B16*4 -> 25.28 | D16: =-(C16*10.75%) -> -2.7176 | E16: =ROUND((C16+D16),2) -> 22.56 | F16: =ROUND((E16/4),2) -> 5.64
A17: Personal Care | B17: 5.13 | C17: 20.52 | D17: =-(C17*10.75%) -> -2.2059 | E17: =ROUND((C17+D17),2) -> 18.31 | F17: =ROUND((E17/4),2) -> 4.58 | J17: 2011-01-15 | K17: 0.4838709677 | L17: 0.5483870968
A18: Health Maintenance | B18: 7.44 | C18: 29.76 | D18: =ROUND(-(C18*10.75%),2) -> -3.2 | E18: =ROUND((C18+D18),2) -> 26.56 | F18: =ROUND((E18/4),2) -> 6.64 | J18: 2011-01-16 | K18: 0.5161290323 | L18: 0.5161290323
J19: 2011-01-17 | K19: 0.5483870968 | L19: 0.4838709677
A20: SERVICE | B20: Weekly Hours of Service | C20: Adjusted Hourly Rate | D20: # of Weeks | E20: CDASS Period Allocation | F20: Daily Rate | G20: Monthly Allocation | J20: 2011-01-18 | K20: 0.5806451613 | L20: 0.4516129032
A21: Homemaker | C21: =E15 -> 13.92 | D21: =IFERROR(ROUND(D12/7,8),0) -> 26.42857143 | E21: =IFERROR(ROUND(F21,2)*D12,0) -> 0 | F21: =IFERROR(ROUND((B21*C21*D21)/D$12,2),0) -> 0 | G21: =IFERROR(IF(F$12<1,E21,E21/F$12),0) -> 0 | J21: 2011-01-19 | K21: 0.6129032258 | L21: 0.4193548387
A22: Homemaker Enhanced | C22: =E16 -> 22.56 | D22: =IFERROR(ROUND(D12/7,8),0) -> 26.42857143 | E22: =IFERROR(ROUND(F22,2)*D12,0) -> 0 | F22: =IFERROR(ROUND((B22*C22*D22)/D$12,2),0) -> 0 | G22: =IFERROR(IF(F$12<1,E22,E22/F$12),0) -> 0
A23: Personal Care | C23: =E17 -> 18.31 | D23: =IFERROR(ROUND(D12/7,8),0) -> 26.42857143 | E23: =IFERROR(ROUND(F23,2)*D12,0) -> 0 | F23: =IFERROR(ROUND((B23*C23*D23)/D12,2),0) -> 0 | G23: =IFERROR(IF(F12<1,E23,E23/F12),0) -> 0 | J23: 2011-01-20 | K23: 0.6451612903 | L23: 0.3870967742
A24: Total SPAL Allocation (SLS CDASS ONLY): | E24: =SUM(E21:E23) -> 0 | F24: 0 | G24: 0
A25: Health Maintenance | C25: =E18 -> 26.56 | D25: =IFERROR(ROUND(D12/7,8),0) -> 26.42857143 | E25: =IFERROR(ROUND(F25,2)*D12,0) -> 0 | F25: =IFERROR(ROUND((B25*C25*D25)/D12,2),0) -> 0 | G25: =IFERROR(IF(F12<1,E25,E25/F12),0) -> 0 | J25: 2011-01-21 | K25: 0.6774193548 | L25: 0.3548387097
A26: Totals | E26: =SUM(E24:E25) -> 0 | F26: =SUM(F24:F25) -> 0 | G26: =SUM(G24:G25) -> 0 | J26: 2011-01-22 | K26: 0.7096774194 | L26: 0.3225806452
J27: 2011-01-23 | K27: 0.7419354839 | L27: 0.2903225806
A28: *Fee schedule rates for Homemaker, Personal Care, and Health Maintenance are calculated to include a component for agency administrative and overhead costs. The Overhead Adjustment is a deduction from the FFS rate to account for costs that are not incurred by consumer directed attendants. | J28: 2011-01-24 | K28: 0.7741935484 | L28: 0.2580645161
J29: 2011-01-25 | K29: 0.8064516129 | L29: 0.2258064516
J30: 2011-01-26 | K30: 0.8387096774 | L30: 0.1935483871
A31: Year | B31: Month | C31: Days | D31: End-date EOM | E31: StartDate EOM | G31: Start Date Validation | J31: 2011-01-27 | K31: 0.8709677419 | L31: 0.1612903226
A32: =YEAR(B12)-YEAR(A12) -> 1 | B32: =MONTH(B12)-MONTH(A12) -> -6 | C32: =D33+E33 -> 1.032258065 | G32: =IF(B12="",G33,B12) -> 2019-01-01 | J32: 2011-01-28 | K32: 0.9032258065 | L32: 0.1290322581
A33: Month Calculation | C33: =IF(A32<0,0,IF(A32=0,IF(B32=0,C32-1,IF(B32=1,C32,IF(B32+C32<=13,(B32+C32)-1,"ERROR"))),IF(A32=1,IF(((A32*12)+B32)-1+C32>12,"Invalid Date Span >1YR",((A32*12)+B32)-1+C32),"Invalid Date Span >1YR"))) -> 6.032258065 | D33: =VLOOKUP(B12,J:L,2,FALSE) -> 0.03225806452 | E33: =VLOOKUP(A12,J:L,3,FALSE) -> 1 | G33: =IF(B12="",A12,7/1/2011) -> 1904-01-01T00:05:00.746 | J33: 2011-01-29 | K33: 0.935483871 | L33: 0.09677419355
A34: Actual Months | C34: =IFERROR(IF(C33>12,"Invalid Date Span >1YR",C33),"") -> 6.032258065 | J34: 2011-01-30 | K34: 0.9677419355 | L34: 0.06451612903
J35: 2011-01-31 | K35: 1 | L35: 0.03225806452
A36: New CDASS Client | E36: EBD | J36: 2011-02-01 | K36: 0.03571428571 | L36: 1
A37: CSR for an existing CDASS Client | E37: MI | J37: 2011-02-02 | K37: 0.07142857143 | L37: 0.9642857143
E38: Other ___________________ | J38: 2011-02-03 | K38: 0.1071428571 | L38: 0.9285714286
J39: 2011-02-04 | K39: 0.1428571429 | L39: 0.8928571429
J40: 2011-02-05 | K40: 0.1785714286 | L40: 0.8571428571
J41: 2011-02-06 | K41: 0.2142857143 | L41: 0.8214285714
J42: 2011-02-07 | K42: 0.25 | L42: 0.7857142857
J43: 2011-02-08 | K43: 0.2857142857 | L43: 0.75
J44: 2011-02-09 | K44: 0.3214285714 | L44: 0.7142857143
J45: 2011-02-10 | K45: 0.3571428571 | L45: 0.6785714286
J46: 2011-02-11 | K46: 0.3928571429 | L46: 0.6428571429
J47: 2011-02-12 | K47: 0.4285714286 | L47: 0.6071428571
J48: 2011-02-13 | K48: 0.4642857143 | L48: 0.5714285714
J49: 2011-02-14 | K49: 0.5 | L49: 0.5357142857
J50: 2011-02-15 | K50: 0.5357142857 | L50: 0.5
J51: 2011-02-16 | K51: 0.5714285714 | L51: 0.4642857143
J52: 2011-02-17 | K52: 0.6071428571 | L52: 0.4285714286
J53: 2011-02-18 | K53: 0.6428571429 | L53: 0.3928571429
J54: 2011-02-19 | K54: 0.6785714286 | L54: 0.3571428571
J55: 2011-02-20 | K55: 0.7142857143 | L55: 0.3214285714
J56: 2011-02-21 | K56: 0.75 | L56: 0.2857142857
J57: 2011-02-22 | K57: 0.7857142857 | L57: 0.25
J58: 2011-02-23 | K58: 0.8214285714 | L58: 0.2142857143
J59: 2011-02-24 | K59: 0.8571428571 | L59: 0.1785714286
J60: 2011-02-25 | K60: 0.8928571429 | L60: 0.1428571429
J61: 2011-02-26 | K61: 0.9285714286 | L61: 0.1071428571
J62: 2011-02-27 | K62: 0.9642857143 | L62: 0.07142857143
J63: 2011-02-28 | K63: 1 | L63: 0.03571428571
J64: 2011-03-01 | K64: 0.03225806452 | L64: 1
J65: 2011-03-02 | K65: 0.06451612903 | L65: 0.9677419355
J66: 2011-03-03 | K66: 0.09677419355 | L66: 0.935483871
J67: 2011-03-04 | K67: 0.1290322581 | L67: 0.9032258065
J68: 2011-03-05 | K68: 0.1612903226 | L68: 0.8709677419
J69: 2011-03-06 | K69: 0.1935483871 | L69: 0.8387096774
J70: 2011-03-07 | K70: 0.2258064516 | L70: 0.8064516129
J71: 2011-03-08 | K71: 0.2580645161 | L71: 0.7741935484
J72: 2011-03-09 | K72: 0.2903225806 | L72: 0.7419354839
J73: 2011-03-10 | K73: 0.3225806452 | L73: 0.7096774194
J74: 2011-03-11 | K74: 0.3548387097 | L74: 0.6774193548
J75: 2011-03-12 | K75: 0.3870967742 | L75: 0.6451612903
J76: 2011-03-13 | K76: 0.4193548387 | L76: 0.6129032258
J77: 2011-03-14 | K77: 0.4516129032 | L77: 0.5806451613
J78: 2011-03-15 | K78: 0.4838709677 | L78: 0.5483870968
J79: 2011-03-16 | K79: 0.5161290323 | L79: 0.5161290323
J80: 2011-03-17 | K80: 0.5483870968 | L80: 0.4838709677
J81: 2011-03-18 | K81: 0.5806451613 | L81: 0.4516129032
J82: 2011-03-19 | K82: 0.6129032258 | L82: 0.4193548387
J83: 2011-03-20 | K83: 0.6451612903 | L83: 0.3870967742
J84: 2011-03-21 | K84: 0.6774193548 | L84: 0.3548387097
J85: 2011-03-22 | K85: 0.7096774194 | L85: 0.3225806452
J86: 2011-03-23 | K86: 0.7419354839 | L86: 0.2903225806
J87: 2011-03-24 | K87: 0.7741935484 | L87: 0.2580645161
J88: 2011-03-25 | K88: 0.8064516129 | L88: 0.2258064516
J89: 2011-03-26 | K89: 0.8387096774 | L89: 0.1935483871
J90: 2011-03-27 | K90: 0.8709677419 | L90: 0.1612903226
J91: 2011-03-28 | K91: 0.9032258065 | L91: 0.1290322581
J92: 2011-03-29 | K92: 0.935483871 | L92: 0.09677419355
J93: 2011-03-30 | K93: 0.9677419355 | L93: 0.06451612903
J94: 2011-03-31 | K94: 1 | L94: 0.03225806452
J95: 2011-04-01 | K95: 0.03333333333 | L95: 1
J96: 2011-04-02 | K96: 0.06666666667 | L96: 0.9666666667
J97: 2011-04-03 | K97: 0.1 | L97: 0.9333333333
J98: 2011-04-04 | K98: 0.1333333333 | L98: 0.9
J99: 2011-04-05 | K99: 0.1666666667 | L99: 0.8666666667
J100: 2011-04-06 | K100: 0.2 | L100: 0.8333333333
J101: 2011-04-07 | K101: 0.2333333333 | L101: 0.8
J102: 2011-04-08 | K102: 0.2666666667 | L102: 0.7666666667
J103: 2011-04-09 | K103: 0.3 | L103: 0.7333333333
J104: 2011-04-10 | K104: 0.3333333333 | L104: 0.7
J105: 2011-04-11 | K105: 0.3666666667 | L105: 0.6666666667
J106: 2011-04-12 | K106: 0.4 | L106: 0.6333333333
J107: 2011-04-13 | K107: 0.4333333333 | L107: 0.6
J108: 2011-04-14 | K108: 0.4666666667 | L108: 0.5666666667
J109: 2011-04-15 | K109: 0.5 | L109: 0.5333333333
J110: 2011-04-16 | K110: 0.5333333333 | L110: 0.5
J111: 2011-04-17 | K111: 0.5666666667 | L111: 0.4666666667
J112: 2011-04-18 | K112: 0.6 | L112: 0.4333333333
J113: 2011-04-19 | K113: 0.6333333333 | L113: 0.4
J114: 2011-04-20 | K114: 0.6666666667 | L114: 0.3666666667
J115: 2011-04-21 | K115: 0.7 | L115: 0.3333333333
J116: 2011-04-22 | K116: 0.7333333333 | L116: 0.3
J117: 2011-04-23 | K117: 0.7666666667 | L117: 0.2666666667
J118: 2011-04-24 | K118: 0.8 | L118: 0.2333333333
J119: 2011-04-25 | K119: 0.8333333333 | L119: 0.2
J120: 2011-04-26 | K120: 0.8666666667 | L120: 0.1666666667
J121: 2011-04-27 | K121: 0.9 | L121: 0.1333333333
J122: 2011-04-28 | K122: 0.9333333333 | L122: 0.1
J123: 2011-04-29 | K123: 0.9666666667 | L123: 0.06666666667
J124: 2011-04-30 | K124: 1 | L124: 0.03333333333
J125: 2011-05-01 | K125: 0.03225806452 | L125: 1
J126: 2011-05-02 | K126: 0.06451612903 | L126: 0.9677419355
J127: 2011-05-03 | K127: 0.09677419355 | L127: 0.935483871
J128: 2011-05-04 | K128: 0.1290322581 | L128: 0.9032258065
J129: 2011-05-05 | K129: 0.1612903226 | L129: 0.8709677419
J130: 2011-05-06 | K130: 0.1935483871 | L130: 0.8387096774
J131: 2011-05-07 | K131: 0.2258064516 | L131: 0.8064516129
J132: 2011-05-08 | K132: 0.2580645161 | L132: 0.7741935484
J133: 2011-05-09 | K133: 0.2903225806 | L133: 0.7419354839
J134: 2011-05-10 | K134: 0.3225806452 | L134: 0.7096774194
J135: 2011-05-11 | K135: 0.3548387097 | L135: 0.6774193548
J136: 2011-05-12 | K136: 0.3870967742 | L136: 0.6451612903
J137: 2011-05-13 | K137: 0.4193548387 | L137: 0.6129032258
J138: 2011-05-14 | K138: 0.4516129032 | L138: 0.5806451613
J139: 2011-05-15 | K139: 0.4838709677 | L139: 0.5483870968
J140: 2011-05-16 | K140: 0.5161290323 | L140: 0.5161290323
J141: 2011-05-17 | K141: 0.5483870968 | L141: 0.4838709677
J142: 2011-05-18 | K142: 0.5806451613 | L142: 0.4516129032
J143: 2011-05-19 | K143: 0.6129032258 | L143: 0.4193548387
J144: 2011-05-20 | K144: 0.6451612903 | L144: 0.3870967742
J145: 2011-05-21 | K145: 0.6774193548 | L145: 0.3548387097
J146: 2011-05-22 | K146: 0.7096774194 | L146: 0.3225806452
J147: 2011-05-23 | K147: 0.7419354839 | L147: 0.2903225806
J148: 2011-05-24 | K148: 0.7741935484 | L148: 0.2580645161
J149: 2011-05-25 | K149: 0.8064516129 | L149: 0.2258064516
J150: 2011-05-26 | K150: 0.8387096774 | L150: 0.1935483871
J151: 2011-05-27 | K151: 0.8709677419 | L151: 0.1612903226
J152: 2011-05-28 | K152: 0.9032258065 | L152: 0.1290322581
J153: 2011-05-29 | K153: 0.935483871 | L153: 0.09677419355
J154: 2011-05-30 | K154: 0.9677419355 | L154: 0.06451612903
J155: 2011-05-31 | K155: 1 | L155: 0.03225806452
J156: 2011-06-01 | K156: 0.03333333333 | L156: 1
J157: 2011-06-02 | K157: 0.06666666667 | L157: 0.9666666667
J158: 2011-06-03 | K158: 0.1 | L158: 0.9333333333
J159: 2011-06-04 | K159: 0.1333333333 | L159: 0.9
J160: 2011-06-05 | K160: 0.1666666667 | L160: 0.8666666667
J161: 2011-06-06 | K161: 0.2 | L161: 0.8333333333
J162: 2011-06-07 | K162: 0.2333333333 | L162: 0.8
J163: 2011-06-08 | K163: 0.2666666667 | L163: 0.7666666667
J164: 2011-06-09 | K164: 0.3 | L164: 0.7333333333
J165: 2011-06-10 | K165: 0.3333333333 | L165: 0.7
J166: 2011-06-11 | K166: 0.3666666667 | L166: 0.6666666667
J167: 2011-06-12 | K167: 0.4 | L167: 0.6333333333
J168: 2011-06-13 | K168: 0.4333333333 | L168: 0.6
J169: 2011-06-14 | K169: 0.4666666667 | L169: 0.5666666667
J170: 2011-06-15 | K170: 0.5 | L170: 0.5333333333
J171: 2011-06-16 | K171: 0.5333333333 | L171: 0.5
J172: 2011-06-17 | K172: 0.5666666667 | L172: 0.4666666667
J173: 2011-06-18 | K173: 0.6 | L173: 0.4333333333
J174: 2011-06-19 | K174: 0.6333333333 | L174: 0.4
J175: 2011-06-20 | K175: 0.6666666667 | L175: 0.3666666667
J176: 2011-06-21 | K176: 0.7 | L176: 0.3333333333
J177: 2011-06-22 | K177: 0.7333333333 | L177: 0.3
J178: 2011-06-23 | K178: 0.7666666667 | L178: 0.2666666667
J179: 2011-06-24 | K179: 0.8 | L179: 0.2333333333
J180: 2011-06-25 | K180: 0.8333333333 | L180: 0.2
J181: 2011-06-26 | K181: 0.8666666667 | L181: 0.1666666667
J182: 2011-06-27 | K182: 0.9 | L182: 0.1333333333
J183: 2011-06-28 | K183: 0.9333333333 | L183: 0.1
J184: 2011-06-29 | K184: 0.9666666667 | L184: 0.06666666667
J185: 2011-06-30 | K185: 1 | L185: 0.03333333333
J186: 2011-07-01 | K186: 0.03225806452 | L186: 1
J187: 2011-07-02 | K187: 0.06451612903 | L187: 0.9677419355
J188: 2011-07-03 | K188: 0.09677419355 | L188: 0.935483871
J189: 2011-07-04 | K189: 0.1290322581 | L189: 0.9032258065
J190: 2011-07-05 | K190: 0.1612903226 | L190: 0.8709677419
J191: 2011-07-06 | K191: 0.1935483871 | L191: 0.8387096774
J192: 2011-07-07 | K192: 0.2258064516 | L192: 0.8064516129
J193: 2011-07-08 | K193: 0.2580645161 | L193: 0.7741935484
J194: 2011-07-09 | K194: 0.2903225806 | L194: 0.7419354839
J195: 2011-07-10 | K195: 0.3225806452 | L195: 0.7096774194
J196: 2011-07-11 | K196: 0.3548387097 | L196: 0.6774193548
J197: 2011-07-12 | K197: 0.3870967742 | L197: 0.6451612903
J198: 2011-07-13 | K198: 0.4193548387 | L198: 0.6129032258
J199: 2011-07-14 | K199: 0.4516129032 | L199: 0.5806451613
J200: 2011-07-15 | K200: 0.4838709677 | L200: 0.5483870968
... 3091 more rows
